bitfinex/quotes_BTCUSD_20250602
["timestamp","ask_amount","ask_price","bid_price","bid_amount"]
[1748867768621,0.4762655,104130.0,104120.0,0.0892245]
[1748867769017,0.48586869,104130.0,104120.0,0.0892245]
[1748867770823,0.4762655,104130.0,104120.0,0.09814503]
[1748867771023,0.55776484,104130.0,104120.0,0.09814503]
[1748867771223,0.54816165,104130.0,104120.0,0.09814503]
[1748867771452,0.46666249,104130.0,104120.0,0.0892245]
[1748867771670,0.4762655,104130.0,104120.0,0.1056245]
[1748867771869,0.4762655,104130.0,104120.0,0.11454885]
[1748867772073,0.4762655,104130.0,104120.0,0.1056245]
[1748867772922,0.46666249,104130.0,104120.0,0.11454887]
[1748867773127,0.46666249,104130.0,104120.0,0.1056245]
[1748867773333,0.4762655,104130.0,104120.0,0.1213245]
[1748867773848,0.46666249,104130.0,104120.0,0.1213245]
[1748867774241,0.4762655,104130.0,104120.0,0.1213245]
[1748867774601,0.46666249,104130.0,104120.0,0.1213245]
[1748867774766,0.53759834,104130.0,104120.0,0.13024886]
[1748867774962,0.53759834,104130.0,104120.0,0.1213245]
[1748867775200,0.53759834,104130.0,104120.0,0.13024885]
[1748867775406,0.53759834,104130.0,104120.0,0.1213245]
[1748867775604,0.53759834,104130.0,104120.0,0.13024885]
[1748867775812,0.53759834,104130.0,104120.0,0.1213245]
[1748867775988,0.342,104130.0,104120.0,0.1213245]
[1748867776189,0.342,104130.0,104120.0,0.13024886]
[1748867776414,0.342,104130.0,104120.0,0.1213245]
[1748867776990,0.342,104130.0,104120.0,0.13024867]
[1748867777217,0.342,104130.0,104120.0,0.1213245]
[1748867777841,0.342,104130.0,104120.0,0.1302487]
[1748867778138,0.342,104130.0,104120.0,0.1213245]
[1748867778334,0.342,104130.0,104120.0,0.13024862]
[1748867778550,0.342,104130.0,104120.0,0.1213245]
[1748867779121,0.39396806,104130.0,104120.0,0.1213245]
[1748867779848,0.04236551,104130.0,104120.0,0.1213245]
[1748867780089,0.29000651,104140.0,104120.0,0.13024707]
[1748867780311,0.19380993,104140.0,104120.0,0.13024725]
[1748867780453,0.38585947,104140.0,104120.0,0.1213245]
[1748867780966,0.00960255,104130.0,104120.0,0.13024592]
[1748867781173,0.00960255,104130.0,104120.0,0.13024723]
[1748867781381,0.00960255,104130.0,104120.0,0.13024717]
[1748867781597,0.00960255,104130.0,104120.0,0.1213245]
[1748867781801,0.01920519,104130.0,104120.0,0.1213245]
[1748867781979,0.01060255,104130.0,104120.0,0.1213245]
[1748867782380,0.001,104130.0,104120.0,0.13916986]
[1748867782554,0.02020519,104130.0,104120.0,0.13916986]
[1748867783336,0.02020519,104130.0,104120.0,0.13024719]
[1748867783478,0.01060255,104130.0,104120.0,0.13917213]
[1748867783680,0.01060255,104130.0,104120.0,0.13917185]
[1748867783901,0.001,104130.0,104120.0,0.14809649]
[1748867784089,0.01060255,104130.0,104120.0,0.15483837]
[1748867784329,0.06657372,104130.0,104120.0,0.14591369]
[1748867784537,0.17203112,104130.0,104120.0,0.15483849]
[1748867784749,0.17203176,104130.0,104120.0,0.13913849]
[1748867785203,0.17203176,104130.0,104120.0,0.14806421]
[1748867785408,0.17203176,104130.0,104120.0,0.14806419]
[1748867785613,0.17203176,104130.0,104120.0,0.15698984]
[1748867785802,0.3641,104130.0,104120.0,0.14132178]
[1748867786002,0.3641,104130.0,104120.0,0.1480644]
[1748867786157,0.1720324,104130.0,104120.0,0.14132178]
[1748867786368,0.35449672,104130.0,104120.0,0.15698987]
[1748867786565,0.15282547,104130.0,104120.0,0.15698987]
[1748867786839,0.16242857,104130.0,104120.0,0.1569899]
[1748867786963,0.16242857,104130.0,104120.0,0.17484082]
[1748867787404,0.16242857,104130.0,104120.0,0.17483567]
[1748867787605,0.16242857,104130.0,104120.0,0.1591727]
[1748867788023,0.35449681,104130.0,104120.0,0.16809515]
[1748867788160,0.36949681,104130.0,104120.0,0.15169506]
[1748867788374,0.35449681,104130.0,104120.0,0.15169506]
[1748867789003,0.69449681,104130.0,104120.0,0.15169506]
[1748867789251,0.6848939,104130.0,104120.0,0.15169506]
[1748867789996,0.4928263,104130.0,104120.0,0.15169506]
[1748867790261,0.6848939,104130.0,104120.0,0.15169506]
[1748867792332,0.7042908,104130.0,104120.0,0.15169506]
[1748867792581,0.6909908,104130.0,104120.0,0.15169506]
[1748867793260,0.63852518,104130.0,104120.0,0.15169506]
[1748867793458,0.64812819,104130.0,104120.0,0.15169506]
[1748867794489,0.46566323,104130.0,104120.0,0.15169506]
[1748867794707,0.45606004,104130.0,104120.0,0.15169506]
[1748867794914,0.46566323,104130.0,104120.0,0.15169506]
[1748867795294,0.46290323,104130.0,104120.0,0.15169506]
[1748867795509,0.5154068,104130.0,104120.0,0.15169506]
[1748867795726,0.53461272,104130.0,104120.0,0.16789506]
[1748867795924,0.52500962,104130.0,104120.0,0.16789506]
[1748867796125,0.53461272,104130.0,104120.0,0.16789506]
[1748867796844,0.46290295,104130.0,104120.0,0.16789506]
[1748867797468,0.46290295,104130.0,104120.0,0.16699506]
[1748867799054,0.45329985,104130.0,104120.0,0.16699506]
[1748867799259,0.46290286,104130.0,104120.0,0.16699506]
[1748867801135,0.46290286,104130.0,104120.0,0.18309506]
[1748867801471,0.53557284,104130.0,104120.0,0.18309506]
[1748867801868,0.52596983,104130.0,104120.0,0.18309506]
[1748867802079,0.53557284,104130.0,104120.0,0.18309506]
[1748867802286,0.46290286,104130.0,104120.0,0.18309506]
[1748867803454,0.46290286,104130.0,104120.0,0.16699506]
[1748867803905,0.46290286,104130.0,104120.0,0.18309506]
[1748867804110,0.47250605,104130.0,104120.0,0.18309506]
[1748867804313,0.54613635,104130.0,104120.0,0.16699506]
[1748867804513,0.54613626,104130.0,104120.0,0.16699506]
[1748867804713,0.54613635,104130.0,104120.0,0.16699506]
[1748867805025,0.53653316,104130.0,104120.0,0.16699506]
[1748867805200,0.73820404,104130.0,104120.0,0.16699506]
[1748867805429,0.74420131,104130.0,104120.0,0.15169506]
[1748867805607,0.75290488,104130.0,104120.0,0.15169506]
[1748867805809,0.81940205,104130.0,104120.0,0.15169506]
[1748867806385,5.86940205,104130.0,104120.0,0.15169506]
[1748867806952,5.869411,104130.0,104120.0,0.15169506]
[1748867807134,5.873411,104130.0,104120.0,0.15169506]
[1748867807940,5.844511,104130.0,104120.0,0.15169506]
[1748867808141,0.5288131,104130.0,104120.0,0.15169506]
[1748867808350,5.7708807,104130.0,104120.0,0.15169506]
[1748867809236,5.7738807,104130.0,104120.0,0.15169506]
[1748867809632,5.59141574,104130.0,104120.0,0.16669506]
[1748867809844,5.52490962,104130.0,104120.0,0.18199506]
[1748867810203,5.71697722,104130.0,104120.0,0.18199506]
[1748867810795,5.80948844,104130.0,104120.0,0.18199506]
[1748867811397,5.80948844,104130.0,104120.0,0.16669506]
[1748867811616,5.79988571,104130.0,104120.0,0.16669506]
[1748867813513,5.79988571,104130.0,104120.0,0.18179506]
[1748867815782,5.70737449,104130.0,104120.0,0.18179506]
[1748867816447,0.44610069,104130.0,104120.0,0.18179506]
[1748867816654,0.007,104130.0,104120.0,0.18853164]
[1748867817479,0.007,104130.0,104120.0,0.18179506]
[1748867817603,0.007,104130.0,104120.0,0.1885294]
[1748867818662,0.01660255,104130.0,104120.0,0.18852792]
[1748867818861,0.01660255,104130.0,104120.0,0.1885279]
[1748867819638,0.01660255,104130.0,104120.0,0.18179506]
[1748867819866,0.01660255,104130.0,104120.0,0.18852676]
[1748867820960,0.42827579,104130.0,104120.0,0.18852676]
[1748867821163,0.52413009,104130.0,104120.0,0.18179506]
[1748867821520,0.53373291,104130.0,104120.0,0.1885263]
[1748867821726,0.53373291,104130.0,104120.0,0.18852622]
[1748867822148,0.52413009,104130.0,104120.0,0.18852622]
[1748867822363,0.54333583,104130.0,104120.0,0.18852594]
[1748867822573,0.54333573,104130.0,104120.0,0.18852594]
[1748867823074,0.53373282,104130.0,104120.0,0.18179506]
[1748867823256,0.53373282,104130.0,104120.0,0.18852579]
[1748867823460,0.47166222,104130.0,104120.0,0.18852579]
[1748867823914,0.48126513,104130.0,104120.0,0.18852579]
[1748867824120,0.48126513,104130.0,104120.0,0.18852581]
[1748867824737,0.48126513,104130.0,104120.0,0.18852587]
[1748867826046,0.47166222,104130.0,104120.0,0.18179506]
[1748867826285,0.48126513,104130.0,104120.0,0.18179506]
[1748867827155,0.47166222,104130.0,104120.0,0.18852674]
[1748867827593,0.48126504,104130.0,104120.0,0.18852674]
[1748867828071,0.45245685,104130.0,104120.0,0.18179506]
[1748867828295,0.46205958,104130.0,104120.0,0.18179506]
[1748867829007,0.45245685,104130.0,104120.0,0.18852685]
[1748867829257,0.4428543,104130.0,104120.0,0.18179506]
[1748867829483,0.4428543,104130.0,104120.0,0.18852651]
[1748867829706,0.4428543,104130.0,104120.0,0.18852643]
[1748867829937,0.4428543,104130.0,104120.0,0.18179506]
[1748867830172,0.45245685,104130.0,104120.0,0.18852629]
[1748867830662,0.4428543,104130.0,104120.0,0.18852629]
[1748867831736,0.007,104130.0,104120.0,0.20917277]
[1748867831950,0.007,104130.0,104120.0,0.20917146]
[1748867832585,0.007,104130.0,104120.0,0.18852498]
[1748867834202,0.007,104130.0,104120.0,0.1885235]
[1748867834411,0.007,104130.0,104120.0,0.18852307]
[1748867835168,0.007,104130.0,104120.0,0.38060912]
[1748867835411,0.007,104130.0,104120.0,0.48606772]
[1748867835651,0.007,104130.0,104120.0,0.28437737]
[1748867836305,0.003,104130.0,104120.0,0.28437498]
[1748867836510,0.03364475,104140.0,104120.0,0.25427498]
[1748867836719,0.03364475,104140.0,104130.0,0.0306]
[1748867836928,0.01920149,104150.0,104140.0,0.0319]
[1748867837348,0.0096007,104150.0,104140.0,0.0319]
[1748867837563,0.03873477,104150.0,104140.0,0.0319]
[1748867837797,0.0096007,104150.0,104140.0,0.0319]
[1748867838042,0.0096007,104150.0,104120.0,0.24754936]
[1748867838043,0.0096007,104150.0,104120.0,0.17944936]
[1748867838277,0.05940033,104150.0,104120.0,0.18617471]
[1748867838514,0.002,104140.0,104120.0,0.18617471]
[1748867838725,0.06900103,104150.0,104120.0,0.18617479]
[1748867839149,0.06900103,104150.0,104120.0,0.18617455]
[1748867839150,0.07200103,104150.0,104120.0,0.18617455]
[1748867839358,0.06900103,104150.0,104120.0,0.18617455]
[1748867839778,0.05940033,104150.0,104120.0,0.19577876]
[1748867839982,0.09706699,104150.0,104120.0,0.18617455]
[1748867840593,0.08746629,104150.0,104120.0,0.18617455]
[1748867840717,0.09706699,104150.0,104120.0,0.18617455]
[1748867840972,0.34,104140.0,104120.0,0.18617455]
[1748867841182,0.34,104140.0,104130.0,0.0319]
[1748867841387,0.34,104140.0,104130.0,0.03862519]
[1748867842167,0.08746629,104150.0,104140.0,0.0311]
[1748867843407,0.02806596,104150.0,104140.0,0.0311]
[1748867843828,0.01920187,104150.0,104140.0,0.0311]
[1748867844031,0.63781106,104160.0,104140.0,0.0158]
[1748867844234,0.74986651,104160.0,104140.0,0.0158]
[1748867844442,0.00960079,104150.0,104140.0,0.0158]
[1748867844856,0.42854752,104150.0,104140.0,0.0158]
[1748867845062,0.43154752,104150.0,104140.0,0.0158]
[1748867845280,0.72903343,104150.0,104140.0,0.0158]
[1748867845493,0.21125296,104140.0,104130.0,0.0326]
[1748867845701,0.21125296,104140.0,104130.0,0.0067304]
[1748867845702,0.54756932,104140.0,104130.0,0.0067304]
[1748867845910,0.5571715,104140.0,104130.0,0.00673069]
[1748867846138,0.5571715,104140.0,104120.0,0.11509506]
[1748867846354,0.5571714,104140.0,104120.0,0.12182782]
[1748867846557,0.34,104130.0,104120.0,0.12182782]
[1748867846759,0.35435875,104130.0,104120.0,0.12182782]
[1748867847731,0.01435875,104130.0,104120.0,0.12182782]
[1748867848173,0.12941842,104130.0,104120.0,0.10622782]
[1748867848320,0.12941842,104130.0,104120.0,0.09033004]
[1748867848321,0.13902133,104130.0,104120.0,0.09033004]
[1748867848571,0.15822771,104130.0,104120.0,0.08359506]
[1748867848793,0.17412771,104130.0,104120.0,0.08359506]
[1748867850294,0.16452443,104130.0,104120.0,0.08359506]
[1748867850495,0.15492133,104130.0,104120.0,0.08359506]
[1748867850712,5.39,104130.0,104120.0,0.11549506]
[1748867850921,0.34960273,104130.0,104120.0,0.11549506]
[1748867851173,0.34960255,104130.0,104120.0,0.12222839]
[1748867851416,0.34960255,104130.0,104120.0,0.11549506]
[1748867851848,0.35920519,104130.0,104120.0,0.11549506]
[1748867852090,0.42702247,104130.0,104120.0,0.12222838]
[1748867852295,0.42702247,104130.0,104120.0,0.11549506]
[1748867854006,0.01920519,104130.0,104120.0,0.11549506]
[1748867854211,0.03440472,104140.0,104120.0,0.11549506]
[1748867854416,5.05,104130.0,104120.0,0.11549506]
[1748867854614,5.05960264,104130.0,104120.0,0.11549506]
[1748867854819,0.00960255,104130.0,104120.0,0.11549506]
[1748867855426,5.05,104130.0,104120.0,0.11549506]
[1748867856487,5.05960255,104130.0,104120.0,0.09979506]
[1748867856660,0.13025856,104140.0,104120.0,0.11559506]
[1748867856868,0.00960255,104130.0,104120.0,0.11559506]
[1748867857241,0.19801749,104140.0,104120.0,0.11559506]
[1748867857411,0.39966933,104140.0,104120.0,0.11559506]
[1748867857611,5.05,104130.0,104120.0,0.11559506]
[1748867859155,0.34,104130.0,104120.0,0.11559506]
[1748867859590,0.34,104130.0,104120.0,0.1223275]
[1748867859793,0.34,104130.0,104120.0,0.12232743]
[1748867860010,0.34,104130.0,104120.0,0.12232737]
[1748867860202,0.34,104130.0,104120.0,0.12232742]
[1748867860573,0.34,104130.0,104120.0,0.12232725]
[1748867861154,0.34,104130.0,104120.0,0.12232732]
[1748867861559,0.34,104130.0,104120.0,0.12232743]
[1748867861875,0.34,104130.0,104120.0,0.11559506]
[1748867862000,0.34,104130.0,104120.0,0.12232726]
[1748867862450,0.34,104130.0,104120.0,0.12232764]
[1748867862605,0.34,104130.0,104120.0,0.12232749]
[1748867863228,0.34,104130.0,104120.0,0.1223275]
[1748867863792,0.0958543,104140.0,104130.0,0.0163]
[1748867863988,0.38430284,104150.0,104130.0,0.0313]
[1748867864266,0.44545509,104150.0,104130.0,0.015]
[1748867864476,0.44545509,104150.0,104140.0,0.0166]
[1748867864902,0.4358543,104150.0,104140.0,0.0166]
[1748867865112,0.0958543,104150.0,104140.0,0.0316]
[1748867865309,0.06199677,104160.0,104140.0,0.03832747]
[1748867865513,0.19885992,104160.0,104140.0,0.03792714]
[1748867865721,0.003,104150.0,104140.0,0.03792595]
[1748867865918,0.343,104150.0,104140.0,0.03792595]
[1748867866151,0.345,104150.0,104140.0,0.03792595]
[1748867866395,0.003,104150.0,104140.0,0.03792586]
[1748867866803,0.343,104150.0,104140.0,0.03792586]
[1748867867004,0.34,104150.0,104140.0,0.03792586]
[1748867867564,0.34,104150.0,104140.0,0.03792537]
[1748867867769,0.343,104150.0,104140.0,0.03792537]
[1748867868122,0.346,104150.0,104140.0,0.03792537]
[1748867868542,0.346,104150.0,104140.0,0.0312]
[1748867868767,0.006,104150.0,104140.0,0.03792404]
[1748867868992,0.006,104150.0,104140.0,0.03792294]
[1748867869397,0.006,104150.0,104140.0,0.0379229]
[1748867869608,0.006,104150.0,104140.0,0.03792248]
[1748867869811,0.006,104150.0,104140.0,0.03792095]
[1748867870438,0.006,104150.0,104140.0,0.0475234]
[1748867870643,0.006,104150.0,104140.0,0.03791967]
[1748867871056,0.006,104150.0,104140.0,0.0379183]
[1748867871256,0.006,104150.0,104140.0,0.0312]
[1748867871528,0.006,104150.0,104140.0,0.03791817]
[1748867871931,0.006,104150.0,104140.0,0.03791629]
[1748867872148,0.006,104150.0,104140.0,0.0312]
[1748867872353,0.006,104150.0,104140.0,0.03791631]
[1748867872603,0.006,104150.0,104140.0,0.03791609]
[1748867873020,0.006,104150.0,104140.0,0.03791467]
[1748867873640,0.006,104150.0,104140.0,0.03791443]
[1748867874055,0.006,104150.0,104140.0,0.0312]
[1748867874266,0.006,104150.0,104140.0,0.03791443]
[1748867875700,0.006,104150.0,104140.0,0.03791253]
[1748867876324,0.006,104150.0,104140.0,0.03791148]
[1748867876910,0.006,104150.0,104140.0,0.22995994]
[1748867877064,0.006,104150.0,104140.0,0.24916455]
[1748867877260,0.006,104150.0,104140.0,0.24916461]
[1748867877462,0.006,104150.0,104140.0,0.2587662]
[1748867877889,0.006,104150.0,104140.0,0.25205596]
[1748867878108,0.006,104150.0,104140.0,0.29742822]
[1748867878312,0.006,104150.0,104140.0,0.25876616]
[1748867878684,0.006,104150.0,104140.0,0.26836815]
[1748867879122,0.006,104150.0,104140.0,0.27796787]
[1748867879561,0.006,104150.0,104140.0,0.27125976]
[1748867880078,0.003,104150.0,104140.0,0.32011561]
[1748867880294,0.0151,104180.0,104150.0,0.23313216]
[1748867880428,0.34,104170.0,104160.0,0.0315]
[1748867881451,0.00048559,104170.0,104160.0,0.0315]
[1748867881859,0.02569572,104170.0,104160.0,0.0315]
[1748867882331,0.02869572,104170.0,104160.0,0.0315]
[1748867883043,0.00648559,104170.0,104160.0,0.28906721]
[1748867883255,0.00648559,104170.0,104160.0,0.38492151]
[1748867883471,0.00648559,104170.0,104160.0,0.39162558]
[1748867883688,0.00648559,104170.0,104160.0,0.40122554]
[1748867883893,0.00348559,104170.0,104160.0,0.38202543]
[1748867884101,0.00048559,104170.0,104160.0,0.34816804]
[1748867884310,0.00048559,104170.0,104160.0,0.36446593]
[1748867884519,0.00048559,104170.0,104160.0,0.36546602]
[1748867884728,0.00048559,104170.0,104160.0,0.35886578]
[1748867884938,0.00048559,104170.0,104160.0,0.3638063]
[1748867885183,0.00048559,104170.0,104160.0,0.38000696]
[1748867885365,0.00048559,104170.0,104160.0,0.38960702]
[1748867885576,0.00048559,104170.0,104160.0,0.36180674]
[1748867885780,0.00048559,104170.0,104160.0,0.38100741]
[1748867886191,0.00048559,104170.0,104160.0,0.37140697]
[1748867886446,0.00048559,104170.0,104160.0,0.13605238]
[1748867886637,0.00048559,104170.0,104160.0,0.0401944]
[1748867886827,0.00048559,104170.0,104160.0,0.1360487]
[1748867887031,0.00048559,104170.0,104160.0,0.13604938]
[1748867887236,0.00048559,104170.0,104160.0,0.1293543]
[1748867887442,0.00048559,104170.0,104160.0,0.0335]
[1748867887646,0.00048559,104170.0,104160.0,0.04019482]
[1748867887852,0.00048559,104170.0,104160.0,0.0335]
[1748867889776,0.00048559,104170.0,104160.0,0.04019628]
[1748867889975,0.00048559,104170.0,104160.0,0.0335]
[1748867890123,0.00048559,104170.0,104160.0,0.04019623]
[1748867890327,0.00048559,104170.0,104160.0,0.04019619]
[1748867890548,0.00048559,104170.0,104160.0,0.04613743]
[1748867890737,0.00048559,104170.0,104160.0,0.0335]
[1748867890932,0.00048559,104170.0,104160.0,0.04019734]
[1748867891180,0.00048559,104170.0,104160.0,0.0335]
[1748867891378,0.00048559,104170.0,104160.0,0.0401974]
[1748867891581,0.00048559,104170.0,104160.0,0.0335]
[1748867892021,0.00048559,104170.0,104160.0,0.04019904]
[1748867892348,0.00048559,104170.0,104160.0,0.0335]
[1748867892549,0.00048559,104170.0,104160.0,0.04020179]
[1748867893000,0.00048559,104170.0,104160.0,0.04020186]
[1748867894026,0.00048559,104170.0,104160.0,0.04020591]
[1748867894221,0.00048559,104170.0,104160.0,0.04020585]
[1748867894597,0.00048559,104170.0,104160.0,0.04020861]
[1748867895202,0.00048559,104170.0,104160.0,0.04020887]
[1748867895668,0.00048559,104170.0,104160.0,0.0182]
[1748867895870,0.00048559,104170.0,104160.0,0.02490976]
[1748867896005,0.00048559,104170.0,104160.0,0.0182]
[1748867896207,0.00048559,104170.0,104160.0,0.04060976]
[1748867896416,0.00048559,104170.0,104160.0,0.04061013]
[1748867896675,0.00048559,104170.0,104160.0,0.0339]
[1748867896881,0.00048559,104170.0,104160.0,0.04061014]
[1748867897085,0.00048559,104170.0,104160.0,0.0339]
[1748867897287,0.00048559,104170.0,104160.0,0.04061014]
[1748867897694,0.00048559,104170.0,104160.0,0.04061055]
[1748867897897,0.00048559,104170.0,104160.0,0.04061128]
[1748867898233,0.00048559,104170.0,104160.0,0.0339]
[1748867899312,0.00048559,104170.0,104160.0,0.1297543]
[1748867899512,0.00048559,104170.0,104160.0,0.17658015]
[1748867899711,0.00048559,104170.0,104160.0,0.17946938]
[1748867900366,0.00048559,104170.0,104160.0,0.34096762]
[1748867900788,0.00048559,104170.0,104160.0,0.34768063]
[1748867900994,0.00048559,104170.0,104160.0,0.35728096]
[1748867901204,0.00048559,104170.0,104160.0,0.35056795]
[1748867901416,0.00048559,104170.0,104160.0,0.35728057]
[1748867901667,0.00048559,104170.0,104160.0,0.34768024]
[1748867902086,0.00048559,104170.0,104160.0,0.35728057]
[1748867902297,0.00048559,104170.0,104160.0,0.36688081]
[1748867902518,0.00048559,104170.0,104160.0,0.35728128]
[1748867902717,0.00048559,104170.0,104160.0,0.14606813]
[1748867902934,0.00048559,104170.0,104160.0,0.13886726]
[1748867903166,0.00048559,104170.0,104160.0,0.13646752]
[1748867903393,0.00048559,104170.0,104160.0,0.1297543]
[1748867903611,0.00048559,104170.0,104160.0,0.1364697]
[1748867903833,0.00048559,104170.0,104160.0,0.04061604]
[1748867904984,0.00048559,104170.0,104160.0,0.04061922]
[1748867905655,0.00048559,104170.0,104160.0,0.04062196]
[1748867905880,0.00048559,104170.0,104160.0,0.04062608]
[1748867906089,0.00048559,104170.0,104160.0,0.0339]
[1748867906300,0.00048559,104170.0,104160.0,0.04062611]
[1748867907251,0.00048559,104170.0,104160.0,0.04062501]
[1748867907654,0.00048559,104170.0,104160.0,0.0339]
[1748867907878,0.00048559,104170.0,104160.0,0.04062601]
[1748867908101,0.00048559,104170.0,104160.0,0.04062602]
[1748867908549,0.00048559,104170.0,104160.0,0.1297543]
[1748867908695,0.00048559,104170.0,104160.0,0.13648457]
[1748867908922,0.00048559,104170.0,104160.0,0.13648455]
[1748867909125,0.00048559,104170.0,104160.0,0.1297543]
[1748867909324,0.00048559,104170.0,104160.0,0.13648455]
[1748867909767,0.00048559,104170.0,104160.0,0.13648431]
[1748867910590,0.00048559,104170.0,104160.0,0.1297543]
[1748867910811,0.00048559,104170.0,104160.0,0.1364845]
[1748867911030,0.00048559,104170.0,104160.0,0.13648449]
[1748867911251,0.00048559,104170.0,104160.0,0.17566851]
[1748867911471,0.00048559,104170.0,104160.0,0.1297543]
[1748867911703,0.00048559,104170.0,104160.0,0.13648473]
[1748867911903,0.00048559,104170.0,104160.0,0.1297543]
[1748867912747,0.00048559,104170.0,104160.0,0.13648495]
[1748867913389,0.00048559,104170.0,104160.0,0.13648516]
[1748867913585,0.00048559,104170.0,104160.0,0.13648535]
[1748867913762,0.00048559,104170.0,104160.0,0.1297543]
[1748867914300,0.00048559,104170.0,104160.0,0.13648535]
[1748867914518,0.00048559,104170.0,104160.0,0.13888509]
[1748867914937,0.00048559,104170.0,104160.0,0.13648535]
[1748867915371,0.00048559,104170.0,104160.0,0.1364854]
[1748867916125,0.00048559,104170.0,104160.0,0.04063084]
[1748867917017,0.00048559,104170.0,104160.0,0.04303158]
[1748867917223,0.00048559,104170.0,104160.0,0.35881664]
[1748867917427,0.00048559,104170.0,104160.0,0.36601721]
[1748867917629,0.00048559,104170.0,104160.0,0.36601709]
[1748867918195,0.00048559,104170.0,104160.0,0.14608633]
[1748867918421,0.00048559,104170.0,104160.0,0.13888546]
[1748867918646,0.00048559,104170.0,104160.0,0.14848607]
[1748867918867,0.00048559,104170.0,104160.0,0.14175465]
[1748867919101,0.00048559,104170.0,104160.0,0.13888556]
[1748867919330,0.00048559,104170.0,104160.0,0.14848617]
[1748867919556,0.00048559,104170.0,104160.0,0.3596994]
[1748867919751,0.00048559,104170.0,104160.0,0.36016838]
[1748867919960,0.00048559,104170.0,104160.0,0.36224029]
[1748867920197,0.00048559,104170.0,104160.0,0.37184053]
[1748867920432,0.00048559,104170.0,104160.0,0.37184062]
[1748867920647,0.00048559,104170.0,104160.0,0.35263959]
[1748867920860,0.00048559,104170.0,104160.0,0.3622401]
[1748867921547,0.00048559,104170.0,104160.0,0.43167897]
[1748867921749,0.00048559,104170.0,104160.0,0.44127902]
[1748867921887,0.00048559,104170.0,104160.0,0.45659889]
[1748867922090,0.00048559,104170.0,104160.0,0.4565979]
[1748867922515,0.00048559,104170.0,104160.0,0.45659738]
[1748867922730,0.00048559,104170.0,104160.0,0.45659577]
[1748867923789,0.00048559,104170.0,104160.0,0.45659498]
[1748867923996,0.00048559,104170.0,104160.0,0.44986766]
[1748867924212,0.00048559,104170.0,104160.0,0.45659489]
[1748867924343,0.00048559,104170.0,104160.0,0.45659404]
[1748867925072,0.00048559,104170.0,104160.0,0.44699408]
[1748867925281,0.0939401,104200.0,104160.0,0.18423952]
[1748867925282,0.00959711,104190.0,104160.0,0.18423952]
[1748867925578,0.0323,104190.0,104160.0,0.39257739]
[1748867925804,0.08265806,104200.0,104170.0,0.0311]
[1748867925983,0.0321,104190.0,104170.0,0.02282642]
[1748867926587,0.0321,104190.0,104170.0,0.03942642]
[1748867926785,0.0158,104190.0,104170.0,0.0806843]
[1748867927168,0.0158,104190.0,104170.0,0.07395782]
[1748867927395,0.0168,104190.0,104170.0,0.08068449]
[1748867927833,0.0168,104190.0,104170.0,0.03942667]
[1748867928039,0.0168,104190.0,104170.0,0.13528097]
[1748867928242,0.0168,104190.0,104170.0,0.1285543]
[1748867928472,0.0168,104190.0,104170.0,0.1352808]
[1748867928672,0.04153168,104190.0,104170.0,0.1352808]
[1748867928815,0.0168,104190.0,104170.0,0.1285543]
[1748867929024,0.0168,104190.0,104170.0,0.13528056]
[1748867930383,0.0168,104190.0,104170.0,0.1552177]
[1748867930766,0.0168,104190.0,104170.0,0.155218]
[1748867930954,0.0168,104190.0,104170.0,0.14849094]
[1748867931163,0.0168,104190.0,104170.0,0.15521778]
[1748867932125,0.0168,104190.0,104170.0,0.15521788]
[1748867932331,0.0168,104190.0,104170.0,0.14849094]
[1748867932489,0.0168,104190.0,104170.0,0.15521791]
[1748867933647,0.02573168,104190.0,104180.0,0.0162]
[1748867933850,0.0176,104190.0,104180.0,0.00672653]
[1748867934049,0.0176,104190.0,104180.0,0.00672631]
[1748867934448,0.0335,104190.0,104180.0,0.00672631]
[1748867934742,0.0176,104190.0,104180.0,0.00672631]
[1748867934934,0.0196,104190.0,104180.0,0.00672631]
[1748867935291,0.0186,104190.0,104180.0,0.00672631]
[1748867935499,0.0206,104190.0,104180.0,0.00672631]
[1748867935898,0.004,104190.0,104180.0,0.00672634]
[1748867936115,0.004,104190.0,104180.0,0.02182634]
[1748867936678,0.004,104190.0,104180.0,0.04392806]
[1748867936891,0.004,104190.0,104180.0,0.05065439]
[1748867937356,0.004,104190.0,104180.0,0.05065416]
[1748867937559,0.004,104190.0,104180.0,0.03722635]
[1748867937773,0.02919974,104190.0,104180.0,0.03722635]
[1748867938181,0.004,104190.0,104180.0,0.02182635]
[1748867938402,0.004,104190.0,104180.0,0.02182657]
[1748867939228,0.004,104190.0,104180.0,0.02182623]
[1748867939800,0.004,104190.0,104180.0,0.02182574]
[1748867940404,0.004,104190.0,104180.0,0.0151]
[1748867940595,0.004,104190.0,104180.0,0.02182616]
[1748867940797,0.004,104190.0,104180.0,0.0218261]
[1748867940994,0.0205,104190.0,104180.0,0.0067261]
[1748867941197,0.04819483,104190.0,104180.0,0.0067261]
[1748867941603,0.0205,104190.0,104170.0,0.1272543]
[1748867941969,0.02564902,104190.0,104180.0,0.0164]
[1748867942174,0.02564902,104190.0,104180.0,0.00672685]
[1748867942339,0.004,104190.0,104180.0,0.00672685]
[1748867942539,0.004,104190.0,104180.0,0.00672686]
[1748867942944,0.004,104190.0,104170.0,0.1273543]
[1748867943147,0.002,104190.0,104170.0,0.1340815]
[1748867943978,0.10285179,104200.0,104170.0,0.13648105]
[1748867944183,0.16728859,104200.0,104170.0,0.13648158]
[1748867944327,0.001,104190.0,104170.0,0.13648158]
[1748867945254,0.001,104190.0,104170.0,0.13648617]
[1748867945480,0.001,104190.0,104170.0,0.1273543]
[1748867945655,0.17688524,104200.0,104170.0,0.1273543]
[1748867946024,0.1998868,104200.0,104170.0,0.13408668]
[1748867946232,0.1988868,104200.0,104170.0,0.13408668]
[1748867946625,0.001,104190.0,104170.0,0.13648623]
[1748867946854,0.18929024,104200.0,104170.0,0.13648623]
[1748867947082,0.18929024,104200.0,104170.0,0.1364882]
[1748867947281,0.18069378,104200.0,104170.0,0.18606832]
[1748867947547,0.17969378,104200.0,104170.0,0.18606832]
[1748867947957,0.18929024,104200.0,104170.0,0.13648823]
[1748867948313,0.18929015,104200.0,104170.0,0.13648823]
[1748867948525,0.11525698,104200.0,104170.0,0.13648823]
[1748867948741,0.11525698,104200.0,104170.0,0.13648929]
[1748867948911,0.001,104190.0,104170.0,0.13648929]
[1748867949112,0.12485335,104200.0,104170.0,0.13648929]
[1748867949307,0.11525698,104200.0,104170.0,0.12008929]
[1748867949513,0.11625707,104200.0,104180.0,0.0158]
[1748867949714,0.11525707,104200.0,104180.0,0.0225366]
[1748867950275,0.001,104190.0,104180.0,0.0225366]
[1748867950447,0.001,104190.0,104180.0,0.02253658]